Cogmind - Beta 11.1 *** ADVENTURER MODE // 2022.10.12 @ 08:54:07 Player: Kev Result: Destroyed by Y-45 Defender with Heavy Assault Rifle Performance ------------- Evolutions (1) 500 Regions Visited (3) 600 Robots Destroyed (31) 155 Value Destroyed (508) 508 Prototype IDs (0) 0 Alien Tech Used (0) 0 Bonus (0) 0 TOTAL SCORE: 1763 Bonus ------- None Cogmind --------- Core Integrity 0/400 Matter 300/300 Energy 126/160 System Corruption 0% Temperature Critical (663) Movement Core (500) Ox9 Location -9/Materials Parts ------- > --- POWER (2) -------- Light Nuclear Core > --- PROPULSION (2) --- (None) > --- UTILITY (2) ------ Large Storage Unit Improved Terrain Scanner > --- WEAPON (3) ------- Particle Cannon > --- INVENTORY (15) --- Ion Engine Light Ion Engine Improved Ion Engine Light Treads Light Treads Aluminum Leg Aluminum Leg Heat Sink Small Storage Unit High-capacity Matter Pod (26) Small Laser Small Laser Grenade Launcher Flail Peak State ------------ > --- POWER ------------ Backup Power I Light Nuclear Core > --- PROPULSION ------- Aluminum Leg Aluminum Leg > --- UTILITY ---------- Large Storage Unit Improved Terrain Scanner > --- WEAPON ----------- Particle Gun Particle Gun Particle Cannon > --- INVENTORY -------- Ion Engine Light Ion Engine Light Treads Light Treads Heat Sink Small Storage Unit High-capacity Matter Pod Small Laser Small Laser Grenade Launcher [Rating: 17] Favorites ----------- Power Light Nuclear Core Engine Backup Power I Power Core Light Nuclear Core Propulsion Light Treads Treads Light Treads Leg Aluminum Leg Wheel Wheel Utility Large Storage Unit Device Improved Terrain Scanner Storage Large Storage Unit Processor Terrain Scan Processor Weapon Particle Gun Energy Gun Particle Gun Energy Cannon Particle Cannon Ballistic Gun Assault Rifle Launcher Grenade Launcher Build | -11 -10 -10 -9 ------- Run | Scr Mat Min Mat Slots Evolved 2 | . . . 2 Power 1 | . . . 1 Propulsion . | . . . . Utility . | . . . . Weapon 1 | . . . 1 Parts Attached 34 | 6 16 . 12 Power 8 | 1 4 . 3 Engine 5 | 1 3 . 1 Core 3 | . 1 . 2 Reactor . | . . . . Propulsion 6 | 2 2 . 2 Treads 2 | 2 . . . Leg 2 | . 2 . . Wheel 2 | . . . 2 Hover . | . . . . Flight . | . . . . Utility 6 | 1 5 . . Device 2 | . 2 . . Storage 3 | 1 2 . . Processor 1 | . 1 . . Hackware . | . . . . Protection . | . . . . Artifact . | . . . . Weapon 14 | 2 5 . 7 Energy Gun 9 | 1 4 . 4 Energy Cannon 1 | . . . 1 Ballistic Gun 2 | 1 1 . . Ballistic Cannon . | . . . . Launcher 2 | . . . 2 Special Weapon . | . . . . Impact Weapon . | . . . . Slashing Weapon . | . . . . Piercing Weapon . | . . . . Special Melee Weapon . | . . . . Unidentified Prototypes . | . . . . Corrupted Parts 1 | . 1 . . System Corruption 2 | . 2 . . Parts Lost 4 | . . . 4 Power 1 | . . . 1 Propulsion 2 | . . . 2 Utility . | . . . . Weapon 1 | . . . 1 Highest Loss Streak 3 | . . . 3 To Critical Strikes . | . . . . Average Slot Usage (%) 95 | . 96 100 93 Engine 12 | . 12 14 11 Core 5 | . 1 . 9 Treads 11 | . 26 . . Leg 6 | . 1 28 9 Wheel 3 | . . . 7 Device 7 | . 2 14 11 Storage 13 | . 15 14 11 Processor 2 | . 6 . . Energy Gun 18 | . 18 14 19 Energy Cannon 5 | . . . 10 Ballistic Gun 4 | . 9 14 . Launcher 1 | . . . 2 Naked Turns . | . . . . Heaviest Build 37 | 12 33 28 37 Greatest Support 40 | 40 40 20 20 Greatest Overweight (x) 11 | . 1 1 11 Average Overweight (x) 1 | . . 1 2 Largest Inventory Capacity 15 | 8 15 15 15 Average Capacity 12 | 6 9 15 15 Most Carried 14 | 3 11 11 14 Average Carried 8 | 1 5 11 11 Final Capacity 15 | 8 15 15 15 Final Carried 14 | 1 11 11 14 Class Distribution -------------------- 41% | Mutant 25% | Scavenger-Skirmisher 19% | Skirmisher 13% | Scavenger-Mutant Dominant Class ---------------- Mutant | -10/Materials Mutant | -10/Mines Scavenger-Skirmisher | -9/Materials Resources | -11 -10 -10 -9 ----------- Run | Scr Mat Min Mat Matter Collected 690 | 236 222 22 210 Remotely . | . . . . Salvage Created 842 | . 608 22 212 Parts 70 | . 39 3 28 Haulers Intercepted 1 | . 1 . . Recyclers Shooed . | . . . . Parts Field Recycled . | . . . . Retrieved Matter . | . . . . Parts Self-Destructed . | . . . . Prevented . | . . . . Kills | -11 -10 -10 -9 ------- Run | Scr Mat Min Mat Combat Hostiles Destroyed 16 | . 12 . 4 Guns 14 | . 10 . 4 AOE 2 | . 2 . . Classes Destroyed 10 | . 8 . 2 Worker 6 | . 1 2 3 Builder 1 | . 1 . . Hauler 1 | . 1 . . Recycler 1 | . 1 . . Mechanic 1 | . 1 . . Operator 1 | . . . 1 Watcher 4 | . 2 . 2 Swarmer 8 | . 5 . 3 Grunt 7 | . 7 . . Sentry 1 | . . . 1 Best Kill Streak 4 | . 4 2 4 Combat Bots Only 3 | . 3 . 3 Max Kills in Single Turn 2 | . 2 1 2 Gunslinging 1 | . 1 . . Exploded 2 | . 2 . . Melee . | . . . . Uniques/NPCs Destroyed . | . . . . Combat | -11 -10 -10 -9 -------- Run | Scr Mat Min Mat Damage Taken 1253 | . 442 123 688 Core 477 | . 53 16 408 Absorbed by Shields . | . . . . Regen/Repaired (Parts) 13 | . . . 13 Core Remaining (%) 86 | 100 . 72 . Volleys Fired 74 | 1 54 5 14 Largest 3 | 1 2 2 3 Hottest 198 | 40 80 60 198 Shots Fired 160 | 1 108 10 41 Gun 146 | 1 108 10 27 Cannon 14 | . . . 14 Launcher . | . . . . Special . | . . . . Kinetic 49 | . 44 5 . Thermal 80 | . 39 . 41 Explosive . | . . . . Electromagnetic 31 | 1 25 5 . Robot Hit Streak 12 | . 12 4 7 Robot Miss Streak 3 | . 3 1 3 Penetration Max . | . . . . Secondary Targets 4 | . 4 . . Max Gunslinging Chain 1 | . 1 . . Shots Hit Robots 98 | . 70 6 22 Core Hits 43 | . 29 2 12 Critical Kills . | . . . . Critical Parts Destroyed . | . . . . Critical Strikes . | . . . . Melee Attacks . | . . . . Impact . | . . . . Slashing . | . . . . Piercing . | . . . . Sneak Attacks . | . . . . Combat Hostiles . | . . . . Follow-up Attacks . | . . . . Damage Inflicted 1856 | 3 1279 140 434 Guns 1244 | . 879 75 290 Cannons 144 | . . . 144 Explosions 465 | . 400 65 . Melee . | . . . . Ramming 3 | 3 . . . Kinetic 370 | . 310 60 . Thermal 1055 | . 556 65 434 Explosive 104 | . 104 . . Electromagnetic 324 | . 309 15 . Impact . | . . . . Slashing . | . . . . Piercing . | . . . . Highest Corruption 2 | . 2 2 . Average Corruption 2 | . 2 2 . Corruption Purged . | . . . . Corruption Blocked . | . . . . Effects 1 | . . 1 . Heat Flow Errors 1 | . . 1 . Overload Shots . | . . . . Overflow Damage 21 | . 20 . 1 Projectiles 1 | . . . 1 Explosions 20 | . 20 . . Melee . | . . . . Knockbacks . | . . . . Impact . | . . . . Kinetic . | . . . . Secondary . | . . . . Self-Inflicted Damage 28 | . . 28 . Shots 1 | . . 1 . Rammed 1 | 1 . . . Targets Rammed 1 | 1 . . . Kicked . | . . . . Crushed . | . . . . Highest Temperature 850 | . 126 250 850 Average Temperature 146 | . 54 132 243 Received Heat Transfer 303 | . 294 . 9 Effects 21 | . . 3 18 Shutdowns 3 | . . . 3 Energy Bleed 2 | . . . 2 Interference 4 | . . 3 1 Short Circuit 1 | . . . 1 Damage (major) 6 | . . . 6 Damage (core) 5 | . . . 5 Siege Activations . | . . . . Robots Corrupted . | . . . . Combat Hostiles . | . . . . Parts Fried 4 | . 4 . . Impact Corruptions . | . . . . Robots Melted . | . . . . Combat Hostiles . | . . . . Parts Melted 3 | . . . 3 Heat Transferred 2012 | . 950 100 962 Parts Sabotaged . | . . . . Parts Stolen . | . . . . Parts Stripped . | . . . . Power Chain Reactions 5 | . 4 1 . Missiles Intercepted . | . . . . Alert | -11 -10 -10 -9 ------- Run | Scr Mat Min Mat Peak Influence 179 | . 179 83 132 Initial 58 | . . 58 27 Average 48 | . 72 70 34 Maximum Alert Level . | . . . . Low Security (%) 100 | 100 100 100 100 Level 1 . | . . . . Level 2 . | . . . . Level 3 . | . . . . Level 4 . | . . . . Level 5 . | . . . . High Security . | . . . . Max Security . | . . . . Squads Dispatched 1 | . 1 . . Investigation 1 | . 1 . . Extermination . | . . . . Reinforcement . | . . . . Assault . | . . . . Garrison . | . . . . Intercept . | . . . . Searches Triggered . | . . . . Construction Impeded . | . . . . Haulers Reinforced . | . . . . Active Scanning Responses . | . . . . Cargo Convoy Interrupts . | . . . . Stealth | -11 -10 -10 -9 --------- Run | Scr Mat Min Mat Distress Signals 1 | . 1 . . Communications Jammed . | . . . . Distress Signals . | . . . . Times Spotted 38 | . 20 3 15 Peak Tracking Total 7 | . 3 3 7 Tactical Retreats 2 | . . 1 1 Traps | -11 -10 -10 -9 ------- Run | Scr Mat Min Mat Traps Triggered 1 | . 1 . . Indirectly . | . . . . Trap Hack Attempts . | . . . . Triggered . | . . . . Disarmed . | . . . . Reprogrammed . | . . . . Reused . | . . . . Traps Extracted . | . . . . Installed . | . . . . Triggered . | . . . . Machines | -11 -10 -10 -9 ---------- Run | Scr Mat Min Mat Machines Disabled 2 | . 2 . . Max in Single Turn 1 | . 1 . . Machines Sabotaged . | . . . . Garrisons Compromised . | . . . . Overloaded Fab Kills . | . . . . Hacking | -11 -10 -10 -9 --------- Run | Scr Mat Min Mat Machines Accessed 9 | . 2 . 7 Terminals 7 | . 2 . 5 Fabricators . | . . . . Repair Stations 1 | . . . 1 Recycling Units 1 | . . . 1 Scanalyzers . | . . . . Garrison Access . | . . . . Total Hacks 20 | . 4 . 16 Successful 17 | . 3 . 14 Failed 3 | . 1 . 2 Catastrophic . | . . . . Database Lockouts . | . . . . Manual . | . . . . Terminals 13 | . 4 . 9 Fabricators . | . . . . Repair Stations 3 | . . . 3 Recycling Units 4 | . . . 4 Scanalyzers . | . . . . Garrison Access . | . . . . Terminal Hacks 11 | . 3 . 8 Record 2 | . . . 2 Alert Level 3 | . 1 . 2 Unreport Threat 1 | . 1 . . Locate Traps 1 | . . . 1 Registered Prototypes 1 | . . . 1 Zone Layout 3 | . 1 . 2 Fabricator Hacks . | . . . . Repair Station Hacks 3 | . . . 3 Scan Component 1 | . . . 1 Repair 1 | . . . 1 Refit 1 | . . . 1 Recycling Unit Hacks 3 | . . . 3 Recycle Component 1 | . . . 1 Report Inventory 1 | . . . 1 Retrieve Components 1 | . . . 1 Scanalyzer . | . . . . Garrison Access Hacks . | . . . . Unauthorized Hacks . | . . . . Terminals . | . . . . Fabricators . | . . . . Repair Stations . | . . . . Recycling Units . | . . . . Scanalyzers . | . . . . Garrison Access . | . . . . Data Cores Recovered 1 | . . . 1 Used . | . . . . Hacking Detections 6 | . 1 . 5 Full Trace Events 1 | . . . 1 Feedback Events . | . . . . Feedback Blocked . | . . . . Robot Schematics Acquired . | . . . . Robots Built . | . . . . Authchips . | . . . . Time . | . . . . Total Robot Build Rating . | . . . . Part Schematics Acquired . | . . . . Parts Built . | . . . . Authchips . | . . . . Time . | . . . . Total Part Build Rating . | . . . . Parts Repaired 1 | . . . 1 Time 38 | . . . 38 Parts Recycled 1 | . . . 1 Recycled Matter . | . . . . Retrieved Matter . | . . . . Retrieved Components 1 | . . . 1 Parts Scanalyzed . | . . . . Part Schematics Acquired . | . . . . Parts Damaged . | . . . . Bothacking | -11 -10 -10 -9 ------------ Run | Scr Mat Min Mat Used RIF Installer . | . . . . Robots Hacked . | . . . . Non-combat . | . . . . Combat . | . . . . Robot Hacks Applied . | . . . . Relay Couplers Released . | . . . . Fabnet Peak Effective % . | . . . . Robots Rewired . | . . . . Allies Hacked . | . . . . Hacks Repelled . | . . . . Allies | -11 -10 -10 -9 -------- Run | Scr Mat Min Mat Total Allies . | . . . . Largest Group . | . . . . Highest-Rated Group . | . . . . Highest-Rated Ally . | . . . . Total Orders . | . . . . Ally Attacks . | . . . . Total Damage . | . . . . Kills . | . . . . Allies Corrupted . | . . . . Allies Melted . | . . . . Intel | -11 -10 -10 -9 ------- Run | Scr Mat Min Mat Robot Analysis Total . | . . . . Derelict Logs Recovered . | . . . . Drone Launches . | . . . . Drone Recoveries . | . . . . Exploration | -11 -10 -10 -9 ------------- Run | Scr Mat Min Mat Turns Passed 1502 | 129 619 65 689 Spaces Moved 796 | 74 261 27 434 Core 20 | 18 . . 2 Treads 300 | 56 244 . . Legs 187 | . 17 27 143 Wheels 289 | . . . 289 Hover . | . . . . Flight . | . . . . Fastest Speed 50 | 50 160 190 95 Average Speed 150 | 133 161 190 143 Slowest Speed 600 | 160 190 190 600 Overloaded Moves . | . . . . Propulsion Burnouts . | . . . . Robots Hopped . | . . . . Cave-ins Triggered . | . . . . Exploration Rate (%) 20 | 4 34 8 35 Regions Visited 3 Branch Regions 1 Pre-discovered Areas . | . . . . Known Exits Taken . | . . . . Unknown Exits Taken 3 | 1 1 1 . Scrap Searched . | . . . . Spaces Dug . | . . . . Terrain Destroyed 19 | . 19 . . Melee . | . . . . Projectile . | . . . . AOE 19 | . 19 . . Terrain Rammed . | . . . . Walls Destroyed . | . . . . Machines Disabled . | . . . . Actions | -11 -10 -10 -9 --------- Run | Scr Mat Min Mat Total 948 | 103 343 31 471 Wait 13 | 13 . . . Move 793 | 73 260 26 434 Hop . | . . . . Pick Up 28 | 8 12 . 8 Fast Attach . | . . . . Attach 12 | 6 2 . 4 Detach 1 | . 1 . . Swap 22 | . 14 . 8 Drop 4 | 1 . . 3 Fire 74 | 1 54 5 14 Melee . | . . . . Ram . | . . . . Kick . | . . . . Crush 1 | 1 . . . Escape Stasis . | . . . . Rewire . | . . . . Trap . | . . . . Miscellaneous . | . . . . Route ------- -11/Scrapyard -10/Materials (discovered 2 exits: [*Min x2]) -10/Mines -9/Materials (discovered 2 exits: [Mat] / [*Min]) History --------- Turn | Location | Event 27 | -11/Scrapyard | Discovered new exit (range 16) 130 | -11/Scrapyard | Entered Materials 186 | -10/Materials | Discovered new exit (range 15) 323 | -10/Materials | Build established: Mutant 585 | -10/Materials | Discovered new exit (range 15) 749 | -10/Materials | Entered Mines 790 | -10/Mines | Assembled infested the area 799 | -10/Mines | Discovered new exit (range 6) 814 | -10/Mines | Entered Materials 814 | -9/Materials | Evolved 2 slots: Power x1, Weapon x1 907 | -9/Materials | Repaired Lgt. Nuclear Core 1112 | -9/Materials | Build established: Scavenger-Skirmisher 1258 | -9/Materials | Discovered new exit (range 12) 1464 | -9/Materials | Discovered new exit (range 9) 1489 | -9/Materials | Core integrity fell below 50% 1500 | -9/Materials | Core integrity fell below 20% 1503 | -9/Materials | Destroyed by Y-45 Defender with Heavy Assault Rifle Last Messages --------------- Particle Gun broken. Overheating: Short circuit. Dropped Broken Particle Gun. K-01 Serf collects debris. K-01 Serf destroyed. Destroyed Flight Unit. Power failure, Lgt. Nuclear Core shutdown. Overheating: Core damaged (-64). Overheating: Energy bleed (-16). K-01 Serf collects debris. Overheating: Energy bleed (-29). Wheel destroyed. Overheating: System interference. Particle Gun temporarily disabled. Backup Power I destroyed. K-01 Serf collects debris. Overheating: Core damaged (-56). Overheating: Core damaged (-48). K-01 Serf collects debris. Particle Gun destroyed. Map ----- +----------------------------------------------------+ | ?????????????????????????????????????????????????? | | ?????????????????????????????????????????????????? | | ?????????????????????????????????????????????????? | | ?????????????????????????????????????????????????? | | ?????????????????????????????????????????????????? | | ?????????????????????????????????????????????????? | | ?????????????????????????????????????????????????? | | ?????????????????????????????????????????????????? | | ??#??????????????????????????????????????????????? | | ????????????? ???????????????????????????????????? | | ?????????????????????????????????????????????????? | | ?#????#?????????????? ???????????????????????????? | | ??????????????????# ??????????#??????????????????? | | ????#?????????????# ?#??????????????????????????? | | ?????#????????????# ???????????#????????????????? | | ??????#???????????# ????????????????????????????? | | ?#???#??#?????????# ????????????????????????????? | | #####??????###????# ????????????????????????????? | | #?#????? ??# #??????????????????????????? | | " "#??#?#?? ?# ????"??????????????????????? | | "" T#???????? # ?????????####??????????????? | | "" "#????????? ?? + ???????"""""""#????????????? | | "" #?????????????# ???????" !"| "#????????????? | | " #????#??????? # #######" "####?????????? | | #??#?? ?? ????# *=[% s ????????? | | #?#??????? ???# =ks%[@ < s ????????? | | #####??##??? ?? ?# !%[ u Y ????????? | | ##???????#??????###### ## ##???????????? | | ###################### #???######????????????? | | ! / + ## #??#??????????????????? | | # ! #### + #???#???"?????????????? | | #! =!#### ## #?????????????????????? | | ##! !##?# ## a#?????????????????????? | | ###!!!!##??# ## ######????????????????? | | #########??# ## +????? ??????????? | | #??????#???# ## #? ?????????????? | | #???#????#?# ! + a #????????????????? | | #?#????????#####+############+##????#???????????? | | ############### ???????? ?????????????????????? | | # # ? ??????????????????# ????????? | | # # ????????????????????? ????????? | | # """ """ # +???? ?????????"????? ????????? | | + """ """ # #??? ??????????????#? ????????? | | # """ """ "T" # #????#??????????????? ????????? | | # # #?#?#???????????????? ? ?????? | | ############### # # ?????????? #???????# | | # ####?????????# #????"?"# | | ^ ^ # #???#??#?#???# #??#??#?# | | " """ """ + """ #????????????# #??#?#??# | | T """ """ # """ #???????#?#??# #??????## | +----------------------------------------------------+ Best States ------------- Heat Dissipation 35 Energy Generation 19 Energy Capacity 250 Matter Stores 300 Matter Capacity 500 Sight Range 16 Terrain Scan Range 16 Terrain Scan Density 85 Resistance: KI 20 Resistance: TH 20 Resistance: EX 20 Resistance: EM 20 Resistance: I 20 Resistance: S 20 Resistance: P 20 Evasion (%) 41 Recoil Reduction 2 Offensive Hacking 10 Item Schematics ----------------- None Robot Schematics ------------------ None Fabricated ------------ Nothing Alien Tech Used ----------------- None Achievements -------------- Everything Is Under Control Loot Pinata Part-time Mechanic Challenges ------------ None Game ------ Seed SupersonicRefineryKatana Manual? 0 Play Time 00:24:22 Cumulative 0.9 hours Start 2022.10.12 @ 08:21:03 End 2022.10.12 @ 08:54:07 Sessions 1 Manual Loads 0 Difficulty Adventurer Special Mode None Game No. 3 Rogue 1 Adventurer 2 Explorer 0 Win Type - Total 0 Types 0/0/0/0/0/0/0/0/0 Lore% 0 Gallery% 2 Achievement% 2 Wizard Run 0 Options --------- ASCII 0 Keyboard 0 Movement Arrows Keybinds 0 Fullscreen 2 Font 24/Smallcaps Map View 113x50 Tactical HUD 0 Map Filters NONE Filters NONE Steam 1 RUN: 44556cca-6442-4c9e-83c7-6227031e154f